{"text_format":"1","workbook":"xlsx","n_sheets":3,"sheets":["Classement","participants","Feuil1"],"not_rendered":{"charts":0,"images":0,"macros":0,"external_links":0,"defined_names":10,"comments":0,"pivot_tables":1},"unopened":[],"bounds":{"document_bytes":16777216,"sheet_cells":100000,"rows_first":2000,"rows_last":500,"rows_between":2000,"halvings":0,"cell_chars":16384,"cell_head_chars":4096},"cells_cut":0,"cells_raw":0,"read":"whole","date_system":"1900"}

{"sheet":"Classement","index":0,"n_rows":22,"n_cols":11,"rows_kept":22,"cut":false,"hidden":false,"merged":[]}
["CATEGORIE","Equipe Vétérant"]
[]
["Étiquettes de lignes","Somme de TOURS"]
["KJC",15,null,null,"Benjamins-Minimes","Individuel","Détente","Enfants","Homme","Juniors","Vétérans"]
["Danoliver",14,null,null,"La triplette vosgienne","JECDE","Les Vachs Yeah!","MAW'S TEAM","Les vaches à laine","Raiders","KJC"]
["COMME_TU_VEUX",13,null,null,"les bikeurs","Triathlon club déodatien","Les peaux de vache",null,"Gadjo","Jeunes agriculteurs","Danoliver"]
["M et M\\'s ",13,null,null,"team TDR Kids","Boillot","Les électeurs du dimanche matin",null,"2CV",null,"COMME_TU_VEUX"]
["Team TDR 4",12,null,null,"Les vaches qui rient","TDC666","Les jonquilles",null,"Bayagang",null,"M&M's"]
["Les_Poneys",12,null,null,null,"Mael Savignard","Les 3 roux",null,"TEAM TDR5",null,"Poney"]
["Moselotte",12,null,null,null,"Ben-J",null,null,"Vesoul",null,"TDR3"]
["Team TDR 1",12,null,null,null,"Jonathan",null,null,"Frapelle",null,"Moselotte"]
["Team TDR 3",12,null,null,null,"Alain",null,null,"EVG",null,"TDR4"]
["Team TDR 2",11,null,null,null,"Mid",null,null,null,null,"TDR1"]
["Wambst-tursin",9,null,null,null,"Charles Breton",null,null,null,null,"Team TDR 2"]
["Total général",135,null,null,null,"Moooooon la vache",null,null,null,null,"Wambst-tursin"]
[null,null,null,null,null,"Triathlon club déodatien 2"]
[null,null,null,null,null,"Solo88"]
[null,null,null,null,null,"bidibulle75"]
[null,null,null,null,null,"Charlie Cosnier 2"]
[null,null,null,null,null,"Black Magic"]
[null,null,null,null,null,"Christophe"]
[null,null,null,null,null,"Charlie Cosnier"]

{"sheet":"participants","index":1,"n_rows":122,"n_cols":17,"rows_kept":122,"cut":false,"hidden":false,"merged":[]}
["NOM","PRENOM","Colonne3","Colonne4","Colonne5","Colonne6","Colonne7","Colonne8","Colonne9","CATEGORIE","EQUIPE","Colonne12","DOSSARD","N° Licence","TOURS","Colonne1","Colonne2"]
["SCHAAL","Alain",null,null,null,null,null,null,null,"En Individuel","Alain",null,94,null,{"$f":"COUNTIF(Feuil1!A:A,Tableau1[[#This Row],[DOSSARD]])","v":10}]
["AMMELOOT","Aurélien",26,"nicole0658","ammeloot.a@gmail.com","10 Impasse Henri Grandblaise, Appartement 15",88100,"Saint-Dié-des-Vosges","France","En Individuel","Aurélien Ammeloot",0,15,null,{"$f":"COUNTIF(Feuil1!A:A,Tableau1[[#This Row],[DOSSARD]])","v":0}]
["GANGLOFF","Baptiste",null,null,null,null,null,null,null,"Equipe Homme","BAYAGANG",null,81,null,{"$f":"COUNTIF(Feuil1!A:A,Tableau1[[#This Row],[DOSSARD]])","v":6}]
["GANGLOFF","Yannick",null,null,null,null,null,null,null,"Equipe Homme","BAYAGANG",null,82,null,{"$f":"COUNTIF(Feuil1!A:A,Tableau1[[#This Row],[DOSSARD]])","v":6}]
["MuLLER","Benjamin ",29,"hornet205gti","benjamin.muller@hotmail.fr","02, rue des bûcherons",68590,"Thannenkirch","France","En Individuel","Ben-J",0,16,null,{"$f":"COUNTIF(Feuil1!A:A,Tableau1[[#This Row],[DOSSARD]])","v":11}]
["ESCHRICH","Alain",41,"romane03","eschrich.alain@neuf.fr","20 rue du moulin",68160,"ste croix aux mines","france","En Individuel","bidibulle 75",0,17,null,{"$f":"COUNTIF(Feuil1!A:A,Tableau1[[#This Row],[DOSSARD]])","v":5}]
["CHIGNIER","Emmanuel",38,"napalmdeath","emmanuel.chignier@orange.fr",null,0,"THANVILLE","FRANCE","En Individuel","Black Magic",0,11,null,{"$f":"COUNTIF(Feuil1!A:A,Tableau1[[#This Row],[DOSSARD]])","v":5}]
["BOILLOT","Eric",36,"milou450","ririk88@hotmail.fr","2 Chemin de la behaie",88640,"Barbey-seroux","France","En Individuel","Boillot ",1,5,null,{"$f":"COUNTIF(Feuil1!A:A,Tableau1[[#This Row],[DOSSARD]])","v":11}]
["BRETON","Charles",18,"pixazio49","raphael.breton@orange.fr","407 les ecluses",88230,"BAN-SUR-MEURTHE-CLEFCY (88230)","France","En Individuel","charles breton",0,18,null,{"$f":"COUNTIF(Feuil1!A:A,Tableau1[[#This Row],[DOSSARD]])","v":9}]
["DESMONTAGNES","Geoffrey",32,"geogeo701","charlie_cosnier@hotmail.com","10 rue de l\\'Altenberg",67730,"La Vancelle","France","En Individuel","CHARLIE COSNIER",0,20,null,{"$f":"COUNTIF(Feuil1!A:A,Tableau1[[#This Row],[DOSSARD]])","v":4}]
["COSNIER","Charlie",37,"zouzou701","charlie_cosnier@hotmail.com","10 rue de l\\'Altenberg",67730,"La Vancelle","FRANCE","En Individuel","CHARLIE COSNIER 2",0,19,null,{"$f":"COUNTIF(Feuil1!A:A,Tableau1[[#This Row],[DOSSARD]])","v":5}]
["LEITTE","CHRISTOPHE",42,"elodie517","jonathanrios@hotmail.fr","17 RUE MARIE CURRY",88100,"SAINT DIE DES VOSGES","FRANCE","En Individuel","Christophe",0,2,null,{"$f":"COUNTIF(Feuil1!A:A,Tableau1[[#This Row],[DOSSARD]])","v":5}]
["PHILIPPE","Eudes",null,null,null,null,null,null,null,"Equipe Vétérant","COMME_TU_VEUX",null,83,null,{"$f":"COUNTIF(Feuil1!A:A,Tableau1[[#This Row],[DOSSARD]])","v":6}]
["MATT","Mathieu",null,null,null,null,null,null,null,"Equipe Vétérant","COMME_TU_VEUX",null,84,null,{"$f":"COUNTIF(Feuil1!A:A,Tableau1[[#This Row],[DOSSARD]])","v":7}]
["GUTH","Olivier",41,"1012ratou","danoliver@aliceadsl.fr","15A rue des Romains",67680,"Epfig","France","Equipe Vétérant","Danoliver",0,24,null,{"$f":"COUNTIF(Feuil1!A:A,Tableau1[[#This Row],[DOSSARD]])","v":7}]
["TROESCH","Danièle",null,null,null,null,null,null,null,"Equipe Vétérant","Danoliver",null,25,null,{"$f":"COUNTIF(Feuil1!A:A,Tableau1[[#This Row],[DOSSARD]])","v":7}]
["BAKARIA","Valère",31,"perfect","bakaria.valere@gmail.com","1 rue charles gounod",67600,"SELESTAT","France","Equipe Homme","EVG",0,21,null,{"$f":"COUNTIF(Feuil1!A:A,Tableau1[[#This Row],[DOSSARD]])","v":4}]
[null,null,null,null,null,null,null,null,null,"Equipe Homme","EVG",null,22,null,{"$f":"COUNTIF(Feuil1!A:A,Tableau1[[#This Row],[DOSSARD]])","v":0}]
["ISSELET","Maxim",null,null,null,null,null,null,null,"Equipe Homme","Frapelle",null,92,null,{"$f":"COUNTIF(Feuil1!A:A,Tableau1[[#This Row],[DOSSARD]])","v":7}]
["TRAPPELER","Christophe",null,null,null,null,null,null,null,"Equipe Homme","Frapelle",null,93,null,{"$f":"COUNTIF(Feuil1!A:A,Tableau1[[#This Row],[DOSSARD]])","v":1}]
["CREUSOT","Loïc",32,"loanne","creusot.loic@gmail.com",null,88190,"Golbey","France","En Individuel","Guitouns",0,1,null,{"$f":"COUNTIF(Feuil1!A:A,Tableau1[[#This Row],[DOSSARD]])","v":0}]
["HUNG","Bertrand",30,"cannondale","bertrand.hung@gmail.com","2360 Route de colmar",88400,"XONRUPT","FRANCE","En Individuel","JECDE",0,23,null,{"$f":"COUNTIF(Feuil1!A:A,Tableau1[[#This Row],[DOSSARD]])","v":14}]
["SAUFFROY","Arthur",17,"galivelo","sauffroy.arthur@gmail.com","19 rue du stade ",88520,"Ban de Laveline","France","Equipe Juniors","Jeunes Agriculteurs",0,26,null,{"$f":"COUNTIF(Feuil1!A:A,Tableau1[[#This Row],[DOSSARD]])","v":3}]
["FISCHER","Jordan",16,"pierre",null,"16 rue de la Staige",88520,"Wisembach","F","Equipe Juniors","Jeunes Agriculteurs",0,27,null,{"$f":"COUNTIF(Feuil1!A:A,Tableau1[[#This Row],[DOSSARD]])","v":4}]
["RIOS","Jonathan",32,"elodie517","jonathanrios@hotmail.fr","12 route de raves",88100,"NEUVILLERS SUR FAVE","FRANCE","En Individuel","Jonathan",0,4,null,{"$f":"COUNTIF(Feuil1!A:A,Tableau1[[#This Row],[DOSSARD]])","v":11}]
["GAY","Jean Christophe",42,"blakers","jcgay@live.fr","14 avenue andre colin",88100,"saint die des vosges","france","Equipe Vétérant","KJC",0,28,null,{"$f":"COUNTIF(Feuil1!A:A,Tableau1[[#This Row],[DOSSARD]])","v":7}]
[null,null,null,null,null,null,null,null,null,"Equipe Vétérant","KJC",null,29,null,{"$f":"COUNTIF(Feuil1!A:A,Tableau1[[#This Row],[DOSSARD]])","v":8}]
["GEOFFROY","Aymeric",11,"triplette","geoffroymd@wanadoo.fr","21 chemin des Evaux",88520,"Ban de Laveline","France","Benjamins-Minimes","La triplette Vosgienne",0,30,null,{"$f":"COUNTIF(Feuil1!A:A,Tableau1[[#This Row],[DOSSARD]])","v":14}]
["JONET","Paul",13,"triplette","francoise.jonet@aliceadsl.fr","1 chemin du chaufour",88520,"ban delaveline","france","Benjamins-Minimes","La triplette Vosgienne",0,31,null,{"$f":"COUNTIF(Feuil1!A:A,Tableau1[[#This Row],[DOSSARD]])","v":13}]
["JONET","Louis",13,"triplette","francoise.jonet@aliceadsl.fr","1 chemin du chaufour",88520,"ban de laveline","france","Benjamins-Minimes","La triplette Vosgienne",0,32,null,{"$f":"COUNTIF(Feuil1!A:A,Tableau1[[#This Row],[DOSSARD]])","v":13}]
["REGIN","Paul",18,"Downhill4","polo.ski288@gmail.com",null,88100,"Nayemont les Fosses","France","Equipe Homme","Les 2 CV",0,33,null,{"$f":"COUNTIF(Feuil1!A:A,Tableau1[[#This Row],[DOSSARD]])","v":6}]
[null,null,null,null,null,null,null,null,null,"Equipe Homme","Les 2 CV",null,34,null,{"$f":"COUNTIF(Feuil1!A:A,Tableau1[[#This Row],[DOSSARD]])","v":7}]
["JEANDEL","Lucile",33,"brayaud8","lucile.jeandel@wanadoo.fr","15, rue Boegner",67000,"STRASBOURG","France","Equipe Détente","Les 3 roux",0,35,null,{"$f":"COUNTIF(Feuil1!A:A,Tableau1[[#This Row],[DOSSARD]])","v":5}]
["CAROSSE","3ème roue",30,"brayaud8","lucile.jeandel@wanadoo.fr","15, rue Boegner",67000,"STRASBOURG","France","Equipe Détente","Les 3 roux",0,36,null,{"$f":"COUNTIF(Feuil1!A:A,Tableau1[[#This Row],[DOSSARD]])","v":8}]
["BRANGE","Lisa",28,"guitare88","lisa.brange@live.fr","940  rue charles de gaulle",88650,"anould","France","Equipe Détente","Les 3 roux",0,37,null,{"$f":"COUNTIF(Feuil1!A:A,Tableau1[[#This Row],[DOSSARD]])","v":0}]
["FLEURENCE","Thibault",12,"QuEnTiN01","sabinefleurence@wanadoo.fr","18 Marimont",88520,"BAN DE LAVELINE","France","Benjamins-Minimes","Les Bikeurs",0,38,null,{"$f":"COUNTIF(Feuil1!A:A,Tableau1[[#This Row],[DOSSARD]])","v":15}]
["TRAPPLER","Melvin",13,"QuEnTiN01","sabinefleurence@wanadoo.fr","18 Marimont",88520,"BAN DE LAVELINE","France","Benjamins-Minimes","Les Bikeurs",0,39,null,{"$f":"COUNTIF(Feuil1!A:A,Tableau1[[#This Row],[DOSSARD]])","v":13}]
["CUNY","Lucas",12,280504,"sandracuny@orange.fr","25 la pariée",88490,"lusse","france","Benjamins-Minimes","Les Bikeurs",0,40,null,{"$f":"COUNTIF(Feuil1!A:A,Tableau1[[#This Row],[DOSSARD]])","v":11}]
["VOINSON","Colette",56,"elga190383","elogalmiche@gmail.com","6 le trou le loup",88230,"Plainfaing","France","Equipe Détente","Les jonquilles",0,41,null,{"$f":"COUNTIF(Feuil1!A:A,Tableau1[[#This Row],[DOSSARD]])","v":3}]
["CHOPAT","Nadège ",37,"elga190383","elogalmiche@gmail.com","6 le trou le loup",88230,"Plainfaing","France","Equipe Détente","Les jonquilles",0,42,null,{"$f":"COUNTIF(Feuil1!A:A,Tableau1[[#This Row],[DOSSARD]])","v":8}]
["GALMICHE","Elodie ",34,"elga190383","elogalmiche@gmail.com","6 le trou le loup",88230,"Plainfaing","France","Equipe Détente","Les jonquilles",0,43,null,{"$f":"COUNTIF(Feuil1!A:A,Tableau1[[#This Row],[DOSSARD]])","v":5}]
["LIEBAUT","Lola",15,"les Peaux de Vaches","liebautlol@orange.fr",null,88100,"saint dié des vosges","france","Equipe Détente","les Peaux de Vaches",0,6,null,{"$f":"COUNTIF(Feuil1!A:A,Tableau1[[#This Row],[DOSSARD]])","v":1},{"$f":"SUM(O43:O46)","v":19}]
["LIEBAUT","Tom",16,"les Peaux de Vaches","tometlagomme@orange.fr",null,88100,"saint dié des vosges","france","Equipe Détente","les Peaux de Vaches",0,7,null,{"$f":"COUNTIF(Feuil1!A:A,Tableau1[[#This Row],[DOSSARD]])","v":5}]
["HITTINGER","Marie",16,"les Peaux de Vaches","marie.hittinger03@gmail.com",null,88430,"corcieux","france","Equipe Détente","les Peaux de Vaches",0,8,null,{"$f":"COUNTIF(Feuil1!A:A,Tableau1[[#This Row],[DOSSARD]])","v":9}]
["HITTINGER","Margot",15,"les Peaux de Vaches","marie.hittinger03@gmail.com",null,88430,"corcieux","france","Equipe Détente","les Peaux de Vaches",0,10,null,{"$f":"COUNTIF(Feuil1!A:A,Tableau1[[#This Row],[DOSSARD]])","v":4}]
["VALDENAIRE","Samuel",40,"laine","samuelvaldenaire@yahoo.fr","26 le paquis des cailles",88120,"basse sur le rupt","france","Equipe Homme","les vaches à laine",0,44,null,{"$f":"COUNTIF(Feuil1!A:A,Tableau1[[#This Row],[DOSSARD]])","v":6}]
["RICHARD","Stéphane",42,"laine","stephaneri@wanadoo.fr","RTE de l\\'envers",88120,"basse sur le rupt","france","Equipe Homme","les vaches à laine",0,45,null,{"$f":"COUNTIF(Feuil1!A:A,Tableau1[[#This Row],[DOSSARD]])","v":8}]
["LECOMTE","Lynn",11,"lynn88","christelle-lecomte@wanadoo.fr","2 b le chipal",88520,"LA CROIX AUX MINES","FRANCE","Benjamins-Minimes","Les vaches qui rit",0,46,null,{"$f":"COUNTIF(Feuil1!A:A,Tableau1[[#This Row],[DOSSARD]])","v":11}]
["VOINSON","Camille",11,"lynn88","christelle-lecomte@wanadoo.fr","La Cude",88520,"WISEMBACH","FRANCE","Benjamins-Minimes","Les vaches qui rit",0,47,null,{"$f":"COUNTIF(Feuil1!A:A,Tableau1[[#This Row],[DOSSARD]])","v":11}]
["VOINSON","Enzo ",11,"mes3enfants","stephrenaux@orange.fr","21 rue du stade",88520,"Ban de laveline","France","Benjamins-Minimes","Les vaches qui rit",0,48,null,{"$f":"COUNTIF(Feuil1!A:A,Tableau1[[#This Row],[DOSSARD]])","v":12}]
["FLEURENCE","Quentin",15,"QuEnTiN01","sabinefleurence@wanadoo.fr","18 Marimont",88520,"BAN DE LAVELINE","France","Equipe Détente","Les Vachs\\'Yeah!",0,49,null,{"$f":"COUNTIF(Feuil1!A:A,Tableau1[[#This Row],[DOSSARD]])","v":6}]
["MANGEL","Jean-Christophe",40,"QuEnTiN01","sabinefleurence@wanadoo.fr","18 Marimont",88520,"BAN DE LAVELINE","France","Equipe Détente","Les Vachs\\'Yeah!",0,50,null,{"$f":"COUNTIF(Feuil1!A:A,Tableau1[[#This Row],[DOSSARD]])","v":7}]
["MANGEL","Nicolas",13,"QuEnTiN01","sabinefleurence@wanadoo.fr","21, la praye",88520,"BAN DE LAVELINE","France","Equipe Détente","Les Vachs\\'Yeah!",0,51,null,{"$f":"COUNTIF(Feuil1!A:A,Tableau1[[#This Row],[DOSSARD]])","v":6}]
["GINISTY","Manuel",null,null,null,null,null,null,null,"Equipe Détente","Les_électeurs_du_Dimanche_matin",null,97,null,{"$f":"COUNTIF(Feuil1!A:A,Tableau1[[#This Row],[DOSSARD]])","v":10}]
["ROHRER","Etienne",null,null,null,null,null,null,null,"Equipe Détente","Les_électeurs_du_Dimanche_matin",null,98,null,{"$f":"COUNTIF(Feuil1!A:A,Tableau1[[#This Row],[DOSSARD]])","v":9}]
["BASTIEN","Pierre",null,null,null,null,null,null,null,"Equipe Homme","Les_GADJODUBOCOTEAU",null,90,null,{"$f":"COUNTIF(Feuil1!A:A,Tableau1[[#This Row],[DOSSARD]])","v":7}]
["IUNG","Alexandre",null,null,null,null,null,null,null,"Equipe Homme","Les_GADJODUBOCOTEAU",null,91,null,{"$f":"COUNTIF(Feuil1!A:A,Tableau1[[#This Row],[DOSSARD]])","v":6}]
["FOUCHE","Cyril",null,null,null,null,null,null,null,"Equipe Vétérant","Les_Poneys",null,85,null,{"$f":"COUNTIF(Feuil1!A:A,Tableau1[[#This Row],[DOSSARD]])","v":6}]
["THIRIET","Arnaud",null,null,null,null,null,null,null,"Equipe Vétérant","Les_Poneys",null,86,null,{"$f":"COUNTIF(Feuil1!A:A,Tableau1[[#This Row],[DOSSARD]])","v":6}]
["REGIN","Michel",48,"Downhill4","michel.regin@daillot.fr",null,88100,"Nayemont les Fosses","France","Equipe Vétérant","M et M\\'s ",0,52,null,{"$f":"COUNTIF(Feuil1!A:A,Tableau1[[#This Row],[DOSSARD]])","v":4}]
[null,null,null,null,null,null,null,null,null,"Equipe Vétérant","M et M\\'s ",null,53,null,{"$f":"COUNTIF(Feuil1!A:A,Tableau1[[#This Row],[DOSSARD]])","v":6}]
[null,null,null,null,null,null,null,null,null,"Equipe Vétérant","M et M\\'s ",null,95,null,{"$f":"COUNTIF(Feuil1!A:A,Tableau1[[#This Row],[DOSSARD]])","v":3}]
["SAVIGNARD","Maël",23,26111998,"vanessa.petitcolin@orange.fr","206 VOIE DE LA ROCHE",88650,"anould","France","En Individuel","mael savignard",0,54,null,{"$f":"COUNTIF(Feuil1!A:A,Tableau1[[#This Row],[DOSSARD]])","v":11}]
["PREVOT","Alban",15,"runandbike","david.prev88@orange.fr","405,rue de la May",88100,"COINCHES","France ","Equipe Enfants","MAW\\'S team",0,55,null,{"$f":"COUNTIF(Feuil1!A:A,Tableau1[[#This Row],[DOSSARD]])","v":7}]
["BATOT","William",15,"william007","william.batot@hotmail.fr","359 rue de la may",88100,"Coinches","France","Equipe Enfants","MAW\\'S team",0,56,null,{"$f":"COUNTIF(Feuil1!A:A,Tableau1[[#This Row],[DOSSARD]])","v":6}]
["FUNFSCHILLING","Maxime",15,"william007","william.batot@hotmail.fr","126 Rue de la haute coinches",88100,"Coinches","France","Equipe Enfants","MAW\\'S team",0,57,null,{"$f":"COUNTIF(Feuil1!A:A,Tableau1[[#This Row],[DOSSARD]])","v":7}]
["MIDON","Thomas",35,"gourou54","dad29er@yahoo.fr","2 rue du rambêtant",54110,"Varangéville","France","En Individuel","Mid",0,3,null,{"$f":"COUNTIF(Feuil1!A:A,Tableau1[[#This Row],[DOSSARD]])","v":10}]
["RENAUD ","Alexandra ",38,790203,"aalex.renaud@gmail.com","1 rue des prés verts ",67370,"Schnersheim ","France ","En Individuel","Mooooon la vache ",0,58,null,{"$f":"COUNTIF(Feuil1!A:A,Tableau1[[#This Row],[DOSSARD]])","v":9}]
["BERTRAND","Ludovic",null,null,null,null,null,null,null,"Equipe Vétérant","Moselotte",null,87,null,{"$f":"COUNTIF(Feuil1!A:A,Tableau1[[#This Row],[DOSSARD]])","v":6}]
["MENGIN","Pierre",null,null,null,null,null,null,null,"Equipe Vétérant","Moselotte",null,88,null,{"$f":"COUNTIF(Feuil1!A:A,Tableau1[[#This Row],[DOSSARD]])","v":6}]
["SUREL","Anatole",16,"Anana88","ansurel@laposte.net","33 chemin de la roche toussaint ",88400,"Xonrupt-Longemer","France ","Equipe Juniors","Raiders de 1S2",0,12,null,{"$f":"COUNTIF(Feuil1!A:A,Tableau1[[#This Row],[DOSSARD]])","v":4},{"$f":"SUM(O72:O74)","v":11}]
["LEJAL","Eliott",16,"Lego2468","eliottlejal@orange.fr","176 rue du Vagodel",88650,"Saint Léonard ","France ","Equipe Juniors","Raiders de 1S2",0,13,null,{"$f":"COUNTIF(Feuil1!A:A,Tableau1[[#This Row],[DOSSARD]])","v":4}]
["MUNIER","Jean",17,"FANTOMAS88","jmunier88@gmail.com","987 route de Saint Dié",88100,"NAYEMONT LES FOSSES","france","Equipe Juniors","Raiders de 1S2",0,14,null,{"$f":"COUNTIF(Feuil1!A:A,Tableau1[[#This Row],[DOSSARD]])","v":3}]
["PREVOT ","David ",42,"runandbike2","david.prev88@orange.fr","405,rue de la May ",88100,"COINCHES ","France ","En Individuel","Solo88",0,59,null,{"$f":"COUNTIF(Feuil1!A:A,Tableau1[[#This Row],[DOSSARD]])","v":6}]
["EBER","Rodrigue",null,null,null,null,null,null,null,"En Individuel","TCD666",null,96,null,{"$f":"COUNTIF(Feuil1!A:A,Tableau1[[#This Row],[DOSSARD]])","v":11}]
["TRIQUET","Guy",59,"mdptdr188","traildesroches88@gmail.com",null,88520,"Raves","France","Equipe Vétérant","Team TDR 1",0,60,null,{"$f":"COUNTIF(Feuil1!A:A,Tableau1[[#This Row],[DOSSARD]])","v":6}]
["CUNY","Christophe",50,"mdptdr1","traildesroches88@gmail.com",null,88520,"Raves","France","Equipe Vétérant","Team TDR 1",0,61,null,{"$f":"COUNTIF(Feuil1!A:A,Tableau1[[#This Row],[DOSSARD]])","v":6}]
["THOMAS","Eric",46,"mdptdr2","traildesroches88@gmail.com",null,88520,"Raves","France","Equipe Vétérant","Team TDR 2",0,62,null,{"$f":"COUNTIF(Feuil1!A:A,Tableau1[[#This Row],[DOSSARD]])","v":6}]
["CALLSEN","Aldo",57,"mdpdtr2","traildesroches88@gmail.com",null,88520,"Raves","France","Equipe Vétérant","Team TDR 2",0,63,null,{"$f":"COUNTIF(Feuil1!A:A,Tableau1[[#This Row],[DOSSARD]])","v":5}]
["BLUM","Mathieu",31,"mdptdr3","traildesroches88@gmail.com",null,88520,"Raves","France","Equipe Vétérant","Team TDR 3",0,64,null,{"$f":"COUNTIF(Feuil1!A:A,Tableau1[[#This Row],[DOSSARD]])","v":6}]
["IUNG","Stéphane",38,"mdptdr3","traildesroches88@gmail.com",null,88520,"Raves","France","Equipe Vétérant","Team TDR 3",0,65,null,{"$f":"COUNTIF(Feuil1!A:A,Tableau1[[#This Row],[DOSSARD]])","v":6}]
["BROGNIART","Stéphane",41,"mdptdr4","traildesroches88@gmail.com",null,88520,"Raves","France","Equipe Vétérant","Team TDR 4",0,66,null,{"$f":"COUNTIF(Feuil1!A:A,Tableau1[[#This Row],[DOSSARD]])","v":6}]
["VIDAL","Serge",45,"mdptdr4","traildesroches88@gmail.com",null,88520,"Raves","France","Equipe Vétérant","Team TDR 4",0,67,null,{"$f":"COUNTIF(Feuil1!A:A,Tableau1[[#This Row],[DOSSARD]])","v":6}]
["CLABAU","Pierre",28,"mdptdr5","traildesroches88@gmail.com",null,88520,"Raves","France","Equipe Homme","Team TDR 5",0,68,null,{"$f":"COUNTIF(Feuil1!A:A,Tableau1[[#This Row],[DOSSARD]])","v":6}]
["THIBAULOT","Boris",29,"mdptdr5","traildesroches88@gmail.com",null,88520,"Raves","France","Equipe Homme","Team TDR 5",0,72,null,{"$f":"COUNTIF(Feuil1!A:A,Tableau1[[#This Row],[DOSSARD]])","v":6}]
["VIDAL","Evan",11,"mdptdrkids","traildesroches88@gmail.com",null,88520,"raves","france","Benjamins-Minimes","Tean TDR KIDS",0,73,null,{"$f":"COUNTIF(Feuil1!A:A,Tableau1[[#This Row],[DOSSARD]])","v":13},null,"RENDU"]
["IUNG","Axel",11,"mdptdrkids","traildesroches88@gmail.com",null,88520,"Raves","France","Benjamins-Minimes","Tean TDR KIDS",0,74,null,{"$f":"COUNTIF(Feuil1!A:A,Tableau1[[#This Row],[DOSSARD]])","v":13},null,"RENDU"]
["BADEROT","Rémi",11,"mdptdrkids","traildesroches88@gmail.com",null,88520,"Raves","France","Benjamins-Minimes","Tean TDR KIDS",0,75,null,{"$f":"COUNTIF(Feuil1!A:A,Tableau1[[#This Row],[DOSSARD]])","v":11},null,"RENDU"]
["Hadet","Arthur",23,"Masouillou88","arthur.hadet@gmail.com","23 rue de la pousse",88580,"Saulcy sur Meurthe","France","En Individuel","Triathlon Club Déodatien",0,76,null,{"$f":"COUNTIF(Feuil1!A:A,Tableau1[[#This Row],[DOSSARD]])","v":12}]
["KURTZEMAN","Gildas",null,null,null,null,null,null,null,"En individuel","Triathlon Club Déodatien 2",null,89,null,{"$f":"COUNTIF(Feuil1!A:A,Tableau1[[#This Row],[DOSSARD]])","v":8}]
["LIARD","Laura",26,"pepite","lauraliard@hotmail.fr","2 rue de la Grenouillère",70170,"PORT SUR SAONE","France","Equipe Homme","VESOUL VTT",0,77,null,{"$f":"COUNTIF(Feuil1!A:A,Tableau1[[#This Row],[DOSSARD]])","v":6}]
["VANDERME","Emilien",29,"pepite","mimil-des-bois@hotmail.fr","2 rue de la Grenouillère",70170,"PORT SUR SAONE","France","Equipe Homme","VESOUL VTT",0,78,null,{"$f":"COUNTIF(Feuil1!A:A,Tableau1[[#This Row],[DOSSARD]])","v":6}]
["Wambst","Patrick",54,"vtt","romaineantoine@sfr.fr","5 lot des mezes",88520,"Raves","France","Equipe Vétérant","Wambst-tursin",0,79,null,{"$f":"COUNTIF(Feuil1!A:A,Tableau1[[#This Row],[DOSSARD]])","v":3}]
[null,null,null,null,null,null,null,null,null,"Equipe Vétérant","Wambst-tursin",null,80,null,{"$f":"COUNTIF(Feuil1!A:A,Tableau1[[#This Row],[DOSSARD]])","v":6}]
[null,null,null,null,null,null,null,null,null,null,null,null,null,null,{"$f":"COUNTIF(Feuil1!A:A,Tableau1[[#This Row],[DOSSARD]])","v":0}]
[null,null,null,null,null,null,null,null,null,null,null,null,null,null,{"$f":"COUNTIF(Feuil1!A:A,Tableau1[[#This Row],[DOSSARD]])","v":0}]
[null,null,null,null,null,null,null,null,null,null,null,null,null,null,{"$f":"COUNTIF(Feuil1!A:A,Tableau1[[#This Row],[DOSSARD]])","v":0}]
[null,null,null,null,null,null,null,null,null,null,null,null,null,null,{"$f":"COUNTIF(Feuil1!A:A,Tableau1[[#This Row],[DOSSARD]])","v":0}]
[null,null,null,null,null,null,null,null,null,null,null,null,null,null,{"$f":"COUNTIF(Feuil1!A:A,Tableau1[[#This Row],[DOSSARD]])","v":0}]
[null,null,null,null,null,null,null,null,null,null,null,null,null,null,{"$f":"COUNTIF(Feuil1!A:A,Tableau1[[#This Row],[DOSSARD]])","v":0}]
[null,null,null,null,null,null,null,null,null,null,null,null,null,null,{"$f":"COUNTIF(Feuil1!A:A,Tableau1[[#This Row],[DOSSARD]])","v":0}]
[null,null,null,null,null,null,null,null,null,null,null,null,null,null,{"$f":"COUNTIF(Feuil1!A:A,Tableau1[[#This Row],[DOSSARD]])","v":0}]
[null,null,null,null,null,null,null,null,null,null,null,null,null,null,{"$f":"COUNTIF(Feuil1!A:A,Tableau1[[#This Row],[DOSSARD]])","v":0}]
[null,null,null,null,null,null,null,null,null,null,null,null,null,null,{"$f":"COUNTIF(Feuil1!A:A,Tableau1[[#This Row],[DOSSARD]])","v":0}]
[null,null,null,null,null,null,null,null,null,null,null,null,null,null,{"$f":"COUNTIF(Feuil1!A:A,Tableau1[[#This Row],[DOSSARD]])","v":0}]
[null,null,null,null,null,null,null,null,null,null,null,null,null,null,{"$f":"COUNTIF(Feuil1!A:A,Tableau1[[#This Row],[DOSSARD]])","v":0}]
[null,null,null,null,null,null,null,null,null,null,null,null,null,null,{"$f":"COUNTIF(Feuil1!A:A,Tableau1[[#This Row],[DOSSARD]])","v":0}]
[null,null,null,null,null,null,null,null,null,null,null,null,null,null,{"$f":"COUNTIF(Feuil1!A:A,Tableau1[[#This Row],[DOSSARD]])","v":0}]
[null,null,null,null,null,null,null,null,null,null,null,null,null,null,{"$f":"COUNTIF(Feuil1!A:A,Tableau1[[#This Row],[DOSSARD]])","v":0}]
[null,null,null,null,null,null,null,null,null,null,null,null,null,null,{"$f":"COUNTIF(Feuil1!A:A,Tableau1[[#This Row],[DOSSARD]])","v":0}]
[null,null,null,null,null,null,null,null,null,null,null,null,null,null,{"$f":"COUNTIF(Feuil1!A:A,Tableau1[[#This Row],[DOSSARD]])","v":0}]
[null,null,null,null,null,null,null,null,null,null,null,null,null,null,{"$f":"COUNTIF(Feuil1!A:A,Tableau1[[#This Row],[DOSSARD]])","v":0}]
[null,null,null,null,null,null,null,null,null,null,null,null,null,null,{"$f":"COUNTIF(Feuil1!A:A,Tableau1[[#This Row],[DOSSARD]])","v":0}]
[null,null,null,null,null,null,null,null,null,null,null,null,null,null,{"$f":"COUNTIF(Feuil1!A:A,Tableau1[[#This Row],[DOSSARD]])","v":0}]
[null,null,null,null,null,null,null,null,null,null,null,null,null,null,{"$f":"COUNTIF(Feuil1!A:A,Tableau1[[#This Row],[DOSSARD]])","v":0}]
[null,null,null,null,null,null,null,null,null,null,null,null,null,null,{"$f":"COUNTIF(Feuil1!A:A,Tableau1[[#This Row],[DOSSARD]])","v":0}]
[null,null,null,null,null,null,null,null,null,null,null,null,null,null,{"$f":"COUNTIF(Feuil1!A:A,Tableau1[[#This Row],[DOSSARD]])","v":0}]
[null,null,null,null,null,null,null,null,null,null,null,null,null,null,{"$f":"COUNTIF(Feuil1!A:A,Tableau1[[#This Row],[DOSSARD]])","v":0}]
[null,null,null,null,null,null,null,null,null,null,null,null,null,null,{"$f":"COUNTIF(Feuil1!A:A,Tableau1[[#This Row],[DOSSARD]])","v":0}]
[null,null,null,null,null,null,null,null,null,null,null,null,null,null,{"$f":"COUNTIF(Feuil1!A:A,Tableau1[[#This Row],[DOSSARD]])","v":0}]
[null,null,null,null,null,null,null,null,null,null,null,null,null,null,{"$f":"COUNTIF(Feuil1!A:A,Tableau1[[#This Row],[DOSSARD]])","v":0}]

{"sheet":"Feuil1","index":2,"n_rows":654,"n_cols":2,"rows_kept":654,"cut":false,"hidden":false,"merged":[]}
[38]
[30]
[73]
[48]
[31]
[40]
[73]
[47]
[10]
[39]
[32]
[55]
[42]
[74]
[46]
[38]
[30]
[97]
[50]
[28,"12'"]
[24]
[36]
[23]
[54]
[74]
[45]
[48]
[31]
[40]
[88]
[90,"13'38"]
[81]
[78,"14'"]
[76]
[96]
[34]
[5]
[4]
[84]
[68]
[60]
[64]
[86]
[75]
[12]
[16]
[53]
[47]
[32]
[39]
[62]
[18]
[56]
[73]
[38]
[30]
[3]
[46]
[8]
[11,"18'18"]
[80]
[94,"18'40"]
[89]
[2,"19'15"]
[74]
[40]
[31]
[98]
[42]
[48]
[58,"20'48"]
[49]
[32]
[39]
[75]
[47]
[38]
[30]
[28,"24'45"]
[73]
[20]
[17]
[19]
[21,"25'25"]
[23]
[57]
[44]
[46]
[25]
[39]
[31]
[74]
[97]
[93]
[27]
[35]
[48]
[38]
[32]
[96]
[76]
[33]
[91]
[66]
[83]
[7]
[85]
[82]
[75]
[65]
[4]
[13]
[60]
[5]
[87]
[72]
[39]
[16]
[77]
[30]
[51]
[47]
[73]
[62]
[43]
[38]
[31]
[46]
[52]
[18]
[55]
[74]
[39]
[32]
[3]
[48]
[75]
[98]
[29,"37'30"]
[80]
[94]
[38]
[30]
[23]
[24]
[45]
[89]
[8]
[47]
[73]
[31]
[40]
[50]
[36]
[74]
[46]
[56]
[32]
[39]
[90]
[34]
[58,"43'27"]
[84]
[88]
[75]
[76]
[81]
[48]
[30]
[38]
[64]
[86]
[54]
[78]
[68]
[17]
[61]
[20]
[11]
[19]
[5]
[67]
[97]
[73]
[31]
[4]
[21]
[40]
[47]
[41]
[16]
[14]
[6]
[32]
[74]
[46]
[38]
[92]
[29]
[63]
[30]
[57]
[49]
[75]
[38]
[23]
[44]
[31]
[48]
[18]
[25]
[73]
[40]
[95]
[47]
[32]
[3]
[26]
[98]
[74]
[39]
[94]
[35]
[30]
[46]
[33]
[89]
[38]
[75]
[42]
[8]
[83]
[54]
[91]
[55]
[31]
[76]
[51]
[85]
[73]
[65]
[40]
[48]
[82]
[87]
[5]
[32]
[77]
[72]
[61]
[79]
[39]
[74]
[96]
[4]
[67]
[47]
[28]
[16]
[30]
[97]
[75]
[38]
[23]
[45]
[12]
[46]
[58]
[31]
[24]
[73]
[56]
[40]
[59]
[42]
[48]
[32]
[63]
[19]
[17]
[11]
[20]
[74]
[50]
[39]
[53]
[7]
[36]
[30]
[47]
[21]
[75]
[38]
[34]
[90]
[84]
[54]
[31]
[18]
[46]
[98]
[73]
[3]
[40]
[92]
[88]
[86]
[57]
[81]
[64]
[32]
[76]
[28]
[78]
[48]
[94]
[74]
[39]
[68]
[89]
[96]
[66]
[60]
[5]
[30]
[44]
[23]
[75]
[38]
[47]
[4]
[8]
[49]
[31]
[13]
[16]
[73]
[40]
[25]
[46]
[43]
[32]
[80]
[97]
[39]
[74]
[48]
[55]
[30]
[38]
[75]
[62]
[27]
[47]
[31]
[35]
[33]
[40]
[73]
[52]
[83]
[58]
[54]
[51]
[29]
[32]
[91]
[46]
[39]
[74]
[85]
[59]
[45]
[30]
[65]
[23]
[7]
[82]
[96]
[66]
[48]
[87]
[76]
[56]
[98]
[77]
[17]
[19]
[20]
[3]
[18]
[72]
[60]
[11]
[21]
[5]
[24]
[43]
[94]
[92]
[89]
[14]
[50]
[4]
[16]
[36]
[57]
[8]
[97]
[29]
[34]
[62]
[84]
[80]
[2]
[90]
[54]
[23]
[44]
[88]
[86]
[64]
[78]
[96]
[41]
[95]
[68]
[81]
[67]
[49]
[76]
[25]
[55]
[61]
[10]
[59]
[98]
[58]
[66]
[5]
[3]
[26]
[18]
[94]
[28]
[17]
[19]
[12]
[11]
[35]
[16]
[33]
[4]
[42]
[83]
[51]
[23]
[45]
[89]
[97]
[8]
[91]
[54]
[63]
[85]
[65]
[92]
[24]
[96]
[53]
[87]
[77]
[82]
[72]
[67]
[76]
[57]
[61]
[2]
[28]
[50]
[42]
[79]
[98]
[36]
[59]
[5]
[13]
[7]
[23]
[3]
[44]
[34]
[84]
[94]
[58]
[16]
[90]
[55]
[18]
[4]
[25]
[54]
[86]
[64]
[88]
[96]
[49]
[68]
[97]
[78]
[63]
[29]
[81]
[66]
[8]
[89]
[43]
[60]
[52]
[36]
[76]
[56]
[27]
[92]
[23]
[45]
[51]
[83]
[33]
[5]
[24]
[14]
[10]
[80]
[98]
[91]
[94]
[16]
[3]
[85]
[2]
[65]
[29]
[57]
[58]
[54]
[96]
[4]
[43]
[66]
[72]
[82]
[77]
[62]
[87]
[50]
[18]
[36]
[59]
[8]
[23]
[61]
[97]
[44]
[76]
[95]
[53]
[55]
[84]
[25]
[34]
[42]
[90]
[28]
[89]
[5]
[12]
[49]
[86]
[7]
[64]
[16]
[68]
[96]
[88]
[54]
[94]
[98]
[78]
[56]
[92]
[23]
[67]
[4]
[3]
[81]
[45]
[63]
[79]
[60]
[35]
[26]
[58]
[24]
[2]
[52]
[51]
[76]
[59]
[8]
[41]
[83]
[18]
[33]
[29]
[53]
[57]
[91]
[85]
[65]
[97]
[5]
[13]
[23]
[96]
[10]
[54]
[16]
[50]
[36]
[72]
[45]
[77]
[42]
[82]
[87]
[94]
[67]
[25]
[61]
[62]
[4]
[29]
[80]
[76]
[84]
[92]
[34]
[3]
[58]
[90]
[53]
[27]